bitfinex/quotes_ETHUSD_20250131
["timestamp","ask_amount","ask_price","bid_price","bid_amount"]
[1738307605429,0.62293947,3267.5,3267.2,0.8126]
[1738307608274,0.62293947,3267.5,3267.1,3.0683]
[1738307612230,0.62293947,3267.5,3267.3,0.0075]
[1738307612457,0.62293947,3267.5,3267.2,0.0075]
[1738307613057,0.62293947,3267.5,3267.2,3.06819]
[1738307613511,0.62293947,3267.5,3267.2,0.0075]
[1738307623330,0.03825891,3267.4,3267.2,0.0075]
[1738307623678,3.06083,3267.1,3266.5,3.06133]
[1738307623827,0.8315,3266.9,3266.5,3.06133]
[1738307624132,0.86976501,3266.9,3266.6,3.0075]
[1738307624291,0.8315,3266.9,3266.6,3.0075]
[1738307627342,0.8315,3266.9,3266.6,6.06873]
[1738307627550,0.7553,3267.3,3266.8,3.06853]
[1738307627703,0.03826166,3267.2,3266.8,3.0075]
[1738307628148,3.09899166,3267.2,3266.8,3.0075]
[1738307628852,3.06073,3267.2,3266.8,3.0075]
[1738307629445,0.7553,3267.3,3266.8,3.0075]
[1738307629754,3.816,3267.3,3266.8,3.0075]
[1738307630051,3.06072,3267.2,3266.8,3.0075]
[1738307634547,0.7553,3267.3,3266.5,0.0075]
[1738307634714,0.03826099,3267.2,3267.0,0.0075]
[1738307634926,0.7553,3267.3,3267.0,0.0075]
[1738307635127,0.79356099,3267.3,3267.0,0.0075]
[1738307636067,0.03826098,3267.2,3267.0,0.0075]
[1738307638066,0.03826098,3267.2,3266.5,3.0613]
[1738307638269,0.03826098,3267.2,3266.6,0.0075]
[1738307638440,3.0609,3267.1,3266.6,0.0075]
[1738307638766,3.83558,3266.9,3266.6,0.0075]
[1738307639271,3.06113,3266.8,3266.4,0.7596]
[1738307639976,3.06119,3266.7,3266.1,0.813]
[1738307640192,3.06119,3266.7,3266.0,3.06183]
[1738307640193,0.8119,3266.6,3266.0,3.06183]
[1738307640470,0.8119,3266.6,3266.2,0.0075]
[1738307643644,3.06119,3266.7,3266.2,3.06915]
[1738307643885,3.06119,3266.7,3266.3,3.0]
[1738307644559,0.7952,3266.8,3266.3,3.0]
[1738307644957,3.8563,3266.8,3266.3,3.0]
[1738307645691,3.06119,3266.7,3266.2,3.7625]
[1738307647085,0.7952,3266.8,3266.2,3.7625]
[1738307647276,0.7952,3266.8,3266.3,3.12998842]
[1738307647480,0.7952,3266.8,3266.4,3.0]
[1738307647790,3.06085,3267.1,3266.5,3.06886]
[1738307649199,3.06065,3267.3,3266.7,3.06863]
[1738307649747,3.09901259,3267.2,3266.7,3.06863]
[1738307650344,3.06075,3267.2,3266.7,3.06863]
[1738307651555,3.67677233,3267.2,3266.7,3.06863]
[1738307653257,0.61602233,3267.2,3266.7,3.89891216]
[1738307655257,3.67677233,3267.2,3266.7,3.89891216]
[1738307655652,3.67677233,3267.2,3266.7,0.83778216]
[1738307655859,0.03826257,3267.1,3266.7,0.0075]
[1738307656091,3.67677233,3267.2,3266.7,0.0075]
[1738307656597,0.03826257,3267.1,3266.7,0.0075]
[1738307656804,3.09914257,3267.1,3266.7,0.0075]
[1738307658266,0.03826257,3267.1,3266.7,0.0075]
[1738307658458,3.06116,3266.8,3266.5,1.40865157]
[1738307658685,3.06128,3266.6,3266.5,1.40865157]
[1738307661559,3.09954816,3266.6,3266.1,3.0075]
[1738307661759,3.06149,3266.4,3266.1,0.0075]
[1738307662255,3.06128,3266.6,3266.3,0.0075]
[1738307662456,6.12265,3266.6,3266.3,0.0075]
[1738307663106,3.06139,3266.5,3266.1,0.0075]
[1738307663397,3.06128,3266.6,3266.1,0.0075]
[1738307663989,3.06143,3266.5,3266.1,0.0075]
[1738307664603,3.06128,3266.6,3266.1,0.0075]
[1738307664816,3.06151,3266.4,3266.1,0.0075]
[1738307665504,3.06151,3266.4,3266.2,35.0]
[1738307666281,3.06151,3266.4,3266.1,0.0075]
[1738307666766,3.06151,3266.4,3266.1,35.0075]
[1738307670206,0.0382706,3266.3,3266.1,0.0075]
[1738307670402,3.83771,3266.4,3266.1,0.0075]
[1738307671884,0.03827188,3266.3,3266.1,0.0075]
[1738307672085,3.09988188,3266.3,3266.0,0.0075]
[1738307673113,3.09988188,3266.3,3265.9,0.0075]
[1738307673311,3.06171,3266.2,3265.9,0.0075]
[1738307673509,3.75531919,3266.3,3265.9,0.0075]
[1738307674219,3.06156,3266.3,3265.9,0.0075]
[1738307676012,3.09997328,3266.2,3265.9,0.0075]
[1738307676215,3.06177,3266.1,3265.9,0.0075]
[1738307676708,3.06177,3266.1,3265.8,3.0]
[1738307677112,3.06177,3266.1,3265.8,0.0075]
[1738307677791,3.06177,3266.1,3265.7,0.0075]
[1738307677979,0.03827537,3266.0,3265.7,0.0075]
[1738307678177,0.03827537,3266.0,3265.8,35.0]
[1738307678419,0.03827537,3266.0,3265.7,0.0075]
[1738307681811,0.03827537,3266.0,3265.7,0.015]
[1738307682313,0.03827537,3266.0,3265.8,35.0]
[1738307682616,0.03827537,3266.0,3265.7,0.015]
[1738307683113,0.03827537,3266.0,3265.7,35.015]
[1738307683322,3.06177,3266.1,3265.7,35.015]
[1738307686624,3.06177,3266.1,3265.7,0.015]
[1738307687414,0.03827534,3266.2,3265.7,0.015]
[1738307687929,3.09994534,3266.2,3265.7,0.015]
[1738307690035,0.03827534,3266.2,3265.7,3.07711]
[1738307690193,0.61756439,3266.6,3266.2,0.015]
[1738307690901,0.03827015,3266.5,3266.1,0.0075]
[1738307691627,3.83623,3266.4,3265.8,3.0]
[1738307691830,3.09986378,3266.3,3265.8,3.0]
[1738307691993,3.48732016,3266.3,3265.9,0.0075]
[1738307692326,6.54897016,3266.3,3265.8,3.0]
[1738307692529,3.06166,3266.2,3265.8,0.0075]
[1738307693628,6.51069638,3266.3,3265.8,0.0075]
[1738307695351,3.44904638,3266.3,3265.8,0.0075]
[1738307695549,3.06168,3266.2,3265.8,0.0075]
[1738307697337,3.09995526,3266.2,3265.8,0.0075]
[1738307698759,3.06168,3266.2,3265.8,0.0075]
[1738307700569,0.38745638,3266.3,3265.8,0.0075]
[1738307701155,3.83619,3266.4,3265.9,0.0075]
[1738307701360,3.83619,3266.4,3266.0,0.0075]
[1738307701791,0.7747,3266.4,3266.1,3.06174]
[1738307701997,3.87164,3266.7,3266.2,3.07662]
[1738307702154,3.87164,3266.7,3266.2,0.015]
[1738307702497,0.8104,3266.7,3266.2,3.07663]
[1738307702839,0.8104,3266.7,3266.2,0.015]
[1738307703081,3.87161,3266.7,3266.2,0.015]
[1738307703788,0.7549,3267.2,3266.7,3.07614]
[1738307703987,0.7549,3267.5,3266.8,0.55]
[1738307704140,3.06019,3267.8,3267.1,3.07572]
[1738307704141,3.06035,3267.6,3267.1,3.07572]
[1738307704340,0.61557115,3267.2,3267.1,0.015]
[1738307708486,0.61557115,3267.2,3266.9,3.85133]
[1738307708487,0.61557115,3267.2,3266.9,0.7904]
[1738307708690,0.61557115,3267.2,3266.8,3.0]
[1738307708691,3.0990689,3267.1,3266.8,3.0]
[1738307709045,3.0990689,3267.1,3266.6,0.7962]
[1738307709357,3.0990689,3267.1,3266.7,0.015]
[1738307709358,3.06081,3267.1,3266.7,0.015]
[1738307710745,1.37137115,3267.2,3266.7,0.015]
[1738307710946,4.43209115,3267.2,3266.7,0.015]
[1738307712172,1.37137115,3267.2,3266.7,0.015]
[1738307712474,1.37137115,3267.2,3266.7,3.07618]
[1738307712858,1.37137115,3267.2,3266.7,0.015]
[1738307713074,4.43209115,3267.2,3266.7,0.015]
[1738307713993,1.37137115,3267.2,3266.7,0.015]
[1738307714147,1.37137115,3267.2,3266.7,6.20615842]
[1738307715493,1.37137115,3267.2,3266.7,3.07617]
[1738307715857,0.61557115,3267.2,3266.8,3.06106]
[1738307716488,0.61557115,3267.2,3267.0,0.0075]
[1738307718462,0.61557115,3267.2,3267.1,0.0075]
[1738307719884,0.61557115,3267.2,3267.1,0.8036]
[1738307720494,0.61557115,3267.2,3267.1,0.0075]
[1738307723200,3.0604,3267.6,3267.1,3.14498842]
[1738307723385,3.0604,3267.6,3267.2,0.0075]
[1738307723559,0.6175103,3267.3,3267.2,0.0075]
[1738307727113,0.6175103,3267.3,3267.1,0.015]
[1738307736226,0.6175103,3267.3,3267.1,3.07579]
[1738307737071,0.6175103,3267.3,3267.2,0.015]
[1738307737368,0.7794,3267.9,3267.5,0.015]
[1738307738365,3.83949,3267.9,3267.4,0.0075]
[1738307738550,0.03825403,3267.8,3267.4,0.0075]
[1738307739329,3.83949,3267.9,3267.4,0.0075]
[1738307739772,0.7794,3267.9,3267.4,0.0075]
[1738307740074,4.46258762,3268.1,3267.6,0.0075]
[1738307740785,1.40262762,3268.1,3267.6,0.0075]
[1738307740990,3.09823285,3268.0,3267.6,0.0075]
[1738307742683,3.05998,3268.0,3267.6,0.0075]
[1738307742891,1.40262762,3268.1,3267.6,0.0075]
[1738307743098,4.46253762,3268.1,3267.6,0.0075]
[1738307743389,1.40262762,3268.1,3267.7,0.0075]
[1738307743694,1.40262762,3268.1,3267.6,3.06777]
[1738307743695,1.40262762,3268.1,3267.6,0.015]
[1738307743897,1.40262762,3268.1,3267.6,0.38093862]
[1738307744082,0.60082762,3268.1,3267.8,0.015]
[1738307747157,3.66072762,3268.1,3267.8,0.015]
[1738307749301,0.60082762,3268.1,3267.8,0.015]
[1738307749518,0.1653047,3268.5,3268.0,3.0]
[1738307749664,0.1653047,3268.5,3268.2,0.015]
[1738307750763,0.20354921,3268.5,3267.7,0.7502]
[1738307750959,3.84439,3268.1,3267.7,0.7502]
[1738307751162,0.7845,3268.1,3267.8,0.015]
[1738307751360,3.8444,3268.1,3267.8,0.397549]
[1738307751597,0.02878126,3268.0,3267.8,0.015]
[1738307754939,3.84412,3268.4,3267.9,0.8172]
[1738307755123,3.84412,3268.4,3268.0,0.015]
[1738307756554,4.46491263,3268.4,3268.0,0.015]
[1738307758103,7.52459263,3268.4,3268.0,0.015]
[1738307758543,4.46491263,3268.4,3268.0,0.015]
[1738307758727,3.0597,3268.3,3268.0,0.015]
[1738307759272,3.05962,3268.4,3268.0,0.015]
[1738307759472,3.05962,3268.4,3268.0,0.402736]
[1738307760031,0.1653047,3268.5,3268.0,0.402736]
[1738307760271,0.1653047,3268.5,3268.2,0.0075]
[1738307760441,0.1653047,3268.5,3268.2,0.015]
[1738307760773,0.02957537,3268.4,3268.2,0.7485496]
[1738307761338,0.02957537,3268.4,3268.2,3.8083296]
[1738307762149,0.02957537,3268.4,3268.2,0.7485496]
[1738307764257,0.02957537,3268.4,3268.2,3.8083096]
[1738307764970,0.1653047,3268.5,3268.2,3.8083096]
[1738307765171,0.1653047,3268.5,3268.4,0.015]
[1738307768730,0.19492621,3268.5,3268.4,0.015]
[1738307771746,0.19492621,3268.5,3268.4,0.7708]
[1738307772684,0.1653047,3268.5,3268.4,0.7708]
[1738307772886,3.2248047,3268.5,3268.1,3.0]
[1738307773385,0.029783,3268.4,3268.2,0.015]
[1738307773589,3.2248047,3268.5,3268.2,0.015]
[1738307773770,0.1653047,3268.5,3268.2,0.015]
[1738307774421,0.02987528,3268.4,3268.2,0.015]
[1738307774863,0.1653047,3268.5,3268.2,1.252185]
[1738307775009,0.1653047,3268.5,3268.2,4.311945]
[1738307775354,0.02987528,3268.4,3268.3,35.0075]
[1738307775652,0.1653047,3268.5,3268.4,0.015]
[1738307785720,0.1653047,3268.5,3268.4,0.0075]
[1738307786149,0.19519382,3268.5,3268.4,0.0075]
[1738307786668,0.1653047,3268.5,3268.4,0.0075]
[1738307787220,0.1653047,3268.5,3268.3,0.0075]
[1738307787221,3.8149,3268.4,3268.1,0.01523504]
[1738307787412,0.02990295,3268.3,3268.2,0.015]
[1738307787817,3.08959295,3268.3,3268.2,0.0075]
[1738307788064,0.06814824,3268.3,3268.1,0.01523504]
[1738307788230,0.02990295,3268.3,3268.1,0.01523504]
[1738307788421,3.05978,3268.2,3268.1,0.02273504]
[1738307788625,3.08968295,3268.2,3268.1,0.02273504]
[1738307790046,3.08968295,3268.2,3268.1,0.01523504]
[1738307790219,3.84048295,3268.2,3268.1,0.01523504]
[1738307791470,4.59169232,3268.2,3268.1,0.01523504]
[1738307794393,3.06017,3267.8,3267.5,0.0075]
[1738307794554,3.09819317,3268.1,3267.5,0.015]
[1738307794749,0.02970454,3267.7,3267.6,0.7779]
[1738307794955,3.05994,3268.1,3267.6,0.7779]
[1738307794956,3.05994,3268.1,3267.7,0.015]
[1738307796188,0.7508,3268.2,3267.7,0.015]
[1738307796189,3.81063,3268.2,3267.7,0.015]
[1738307796569,3.05989,3268.1,3267.7,0.015]
[1738307797400,0.7508,3268.2,3267.7,0.015]
[1738307797601,3.05971,3268.3,3267.7,3.07521]
[1738307797801,3.05971,3268.3,3267.7,3.459784]
[1738307797969,3.05971,3268.3,3267.8,35.0]
[1738307798156,6.11949,3268.3,3267.9,0.0075]
[1738307798351,1.40181074,3268.4,3267.9,3.015]
[1738307798558,3.2248447,3268.5,3268.1,0.015]
[1738307800069,3.09784601,3268.4,3268.0,0.565]
[1738307800395,0.02947845,3268.3,3268.0,0.565]
[1738307800897,3.0596,3268.4,3268.0,0.565]
[1738307801297,3.82921944,3268.5,3268.0,0.565]
[1738307801601,0.02947845,3268.3,3268.0,0.565]
[1738307801806,3.82921944,3268.5,3268.0,0.565]
[1738307801960,0.02947845,3268.2,3268.0,0.565]
[1738307802301,0.02947845,3268.1,3268.0,0.565]
[1738307802462,3.82921944,3268.5,3268.0,0.565]
[1738307802663,0.02947845,3268.4,3268.0,0.565]
[1738307804367,0.02947845,3268.4,3268.0,1.611537]
[1738307805411,0.02947845,3268.4,3268.0,4.671477]
[1738307805710,0.02947845,3268.4,3268.0,1.611537]
[1738307805895,3.08910845,3268.4,3268.0,0.565]
[1738307806462,0.02947845,3268.4,3268.0,0.565]
[1738307806788,0.02947845,3268.4,3268.2,3.8011]
[1738307807186,0.1653047,3268.5,3268.2,3.8011]
[1738307807359,0.1653047,3268.5,3268.2,0.8011]
[1738307807776,0.1653047,3268.5,3268.4,0.0075]
[1738307808074,0.19496772,3268.5,3268.4,0.0075]
[1738307812903,0.19496772,3268.5,3268.4,0.015]
[1738307814104,0.19496772,3268.5,3268.4,3.6246]
[1738307814309,0.1653047,3268.5,3268.4,3.6246]
[1738307816493,0.1653047,3268.5,3268.4,0.565]
[1738307817296,0.19533684,3268.5,3268.4,0.565]
[1738307817668,0.1653047,3268.5,3268.4,0.565]
[1738307817869,0.1653047,3268.5,3268.4,3.69498842]
[1738307818569,0.19533684,3268.5,3268.4,0.565]
[1738307819308,0.1653047,3268.5,3268.4,0.565]
[1738307822290,0.19533684,3268.5,3268.4,0.565]
[1738307822905,0.1653047,3268.5,3268.4,0.565]
[1738307824312,0.19533223,3268.5,3268.4,0.565]
[1738307825686,0.1653047,3268.5,3268.4,0.565]
[1738307827776,0.19533223,3268.5,3268.4,4.365683]
[1738307827975,0.19533223,3268.5,3268.4,40.166683]
[1738307828275,0.1653047,3268.5,3268.4,40.166683]
[1738307829318,0.1653047,3268.5,3268.4,37.107083]
[1738307830018,0.1653047,3268.5,3268.4,7.4084]
[1738307830388,0.1653047,3268.5,3268.4,42.4084]
[1738307834548,0.1653047,3268.5,3268.4,7.6074]
[1738307834898,0.1653047,3268.5,3268.4,7.4084]
[1738307835192,0.19428897,3268.5,3268.4,7.4084]
[1738307835410,0.19428897,3268.5,3268.4,10.53838842]
[1738307835708,0.1653047,3268.5,3268.4,10.53838842]
[1738307836121,0.1653047,3268.5,3268.4,6.69498842]
[1738307836498,0.1653047,3268.5,3268.4,3.015]
[1738307836705,0.19428897,3268.5,3268.4,3.565]
[1738307837003,0.1653047,3268.5,3268.4,3.565]
[1738307837426,0.19428897,3268.5,3268.4,3.565]
[1738307837906,3.05966,3268.4,3267.9,0.01523504]
[1738307838127,0.02898427,3268.3,3268.0,0.015]
[1738307838324,3.08875427,3268.3,3268.1,3.0]
[1738307838949,3.08875427,3268.3,3268.2,0.015]
[1738307839277,3.08875427,3268.3,3268.2,0.0075]
[1738307839278,4.63022474,3268.3,3268.2,0.0075]
[1738307839565,3.05988,3268.1,3268.0,0.015]
[1738307839860,3.05988,3268.1,3268.0,0.0075]
[1738307840160,3.08886427,3268.1,3268.0,0.0075]
[1738307840875,0.02898427,3268.1,3268.0,6.62497]
[1738307841076,0.02898427,3268.1,3268.0,8.2783535]
[1738307841250,0.1653047,3268.5,3268.4,6.6246]
[1738307841437,0.1653047,3268.5,3268.4,42.4545]
[1738307845574,0.1653047,3268.5,3268.4,9.4545]
[1738307845758,0.1653047,3268.5,3268.4,10.72582]
[1738307845927,0.1653047,3268.5,3268.4,43.72582]
[1738307846129,0.1653047,3268.5,3268.4,45.72582]
[1738307846425,0.1653047,3268.5,3268.4,43.72582]
[1738307848371,0.1653047,3268.5,3268.4,44.00891926]
[1738307850268,0.1653047,3268.5,3268.4,9.00891926]
[1738307850770,0.1653047,3268.5,3268.4,44.00891926]
[1738307853774,0.1653047,3268.5,3268.4,9.00891926]
[1738307854236,0.1653047,3268.5,3268.4,44.00891926]
[1738307857556,0.1653047,3268.5,3268.4,9.00891926]
[1738307858272,0.19469977,3268.5,3268.4,44.00891926]
[1738307858647,0.1653047,3268.5,3268.4,44.00891926]
[1738307862991,0.1653047,3268.5,3268.4,9.00891926]
[1738307863515,0.1653047,3268.5,3268.4,44.00891926]
[1738307874311,0.1653047,3268.5,3268.4,41.90769926]
[1738307874821,0.9483047,3268.5,3268.4,3.29809926]
[1738307875107,4.0078047,3268.5,3268.4,0.29059926]
[1738307875301,4.03721824,3268.5,3268.4,0.29059926]
[1738307875600,4.03721824,3268.5,3268.4,0.28309926]
[1738307875601,4.75572146,3268.5,3268.4,0.28309926]
[1738307875975,4.78510267,3268.5,3268.4,0.28309926]
[1738307877108,3.86118,3268.2,3268.1,0.28309926]
[1738307877399,3.86118,3268.2,3268.1,0.29059926]
[1738307877400,3.89055659,3268.2,3268.1,0.29059926]
[1738307877605,4.58940527,3268.2,3268.1,0.29059926]
[1738307878412,3.86137,3268.0,3267.9,0.01523504]
[1738307878903,3.89010959,3268.0,3267.9,0.01523504]
[1738307880003,0.02873959,3268.0,3267.9,0.03023504]
[1738307880180,0.02873959,3268.0,3267.9,6.64029504]
[1738307880499,0.753,3268.3,3268.1,0.0075]
[1738307880655,0.753,3268.3,3268.0,0.0075]
[1738307881207,0.0286888,3268.2,3268.0,3.62491]
[1738307881409,0.0286888,3268.2,3268.0,0.565]
[1738307881703,0.753,3268.3,3268.0,3.62496]
[1738307881874,0.02878114,3268.1,3268.0,7.81755266]
[1738307882202,0.1653047,3268.5,3268.4,3.6246]
[1738307882797,0.1941874,3268.5,3268.4,3.6246]
[1738307883513,0.1941874,3268.5,3268.4,6.6246]
[1738307883669,0.1941874,3268.5,3268.4,8.12093216]
[1738307884007,0.1653047,3268.5,3268.4,8.12093216]
[1738307887265,0.1653047,3268.5,3268.4,9.52958373]
[1738307890802,0.1653047,3268.5,3268.4,17.05093216]
[1738307891129,0.1653047,3268.5,3268.4,15.5546]
[1738307891496,0.1653047,3268.5,3268.4,15.0046]
[1738307892029,0.19438125,3268.5,3268.4,15.5546]
[1738307892325,0.19438125,3268.5,3268.4,6.6246]
[1738307892989,0.1653047,3268.5,3268.4,6.6246]
[1738307895989,0.194769,3268.5,3268.4,6.0746]
[1738307896289,0.194769,3268.5,3268.4,41.0746]
[1738307896536,0.1653047,3268.5,3268.4,41.0746]
[1738307896690,0.1653047,3268.5,3268.4,44.40917928]
[1738307897136,0.1653047,3268.5,3268.4,45.16647928]
[1738307902210,0.1653047,3268.5,3268.4,54.09647928]
[1738307908567,0.1653047,3268.5,3268.4,54.29547928]
[1738307910334,0.1653047,3268.5,3268.4,53.33917928]
[1738307910535,0.1653047,3268.5,3268.4,53.53817928]
[1738307913071,0.1653047,3268.5,3268.4,53.33917928]
[1738307913280,0.1653047,3268.5,3268.4,53.53817928]
[1738307913488,0.1653047,3268.5,3268.4,18.53817928]
[1738307913954,0.1653047,3268.5,3268.4,53.53817928]
[1738307915985,0.1653047,3268.5,3268.4,53.33917928]
[1738307926350,0.9702047,3268.5,3268.4,50.0046]
[1738307931571,0.9702047,3268.5,3268.4,15.0046]
[1738307932013,0.9702047,3268.5,3268.4,50.0046]
[1738307935795,0.9702047,3268.5,3268.4,15.0046]
[1738307936274,0.9702047,3268.5,3268.4,50.0046]
[1738307936478,0.99993661,3268.5,3268.4,50.0046]
[1738307936675,0.9702047,3268.5,3268.4,50.0046]
[1738307937400,0.1653047,3268.5,3268.4,50.0046]
[1738307937905,0.1653047,3268.5,3268.4,41.0746]
[1738307940862,0.1653047,3268.5,3268.4,44.20458842]
[1738307941577,0.1653047,3268.5,3268.4,45.02838842]
[1738307942090,0.1653047,3268.5,3268.4,45.57838842]
[1738307943728,0.1653047,3268.5,3268.4,54.50838842]
[1738307944430,0.1653047,3268.5,3268.4,54.50638842]
[1738307948322,0.1653047,3268.5,3268.4,19.50638842]
[1738307948931,0.1653047,3268.5,3268.4,54.50638842]
[1738307956698,0.8258,3269.8,3269.6,0.015]
[1738307957139,0.02981037,3269.7,3269.6,0.015]
[1738307957444,0.8258,3269.8,3269.6,0.0075]
[1738307957629,0.8258,3269.8,3269.4,0.0075]
[1738307958203,0.8258,3269.8,3269.4,3.06613]
[1738307959934,0.8258,3269.8,3269.4,11.99613]
[1738307960947,0.02981037,3269.7,3269.4,11.99613]
[1738307961352,0.8258,3269.8,3269.4,3.06613]
[1738307964444,0.8258,3269.8,3269.4,11.99613]
[1738307964747,0.02981037,3269.7,3269.4,11.99613]
[1738307965047,0.8258,3269.8,3269.4,11.99613]
[1738307965845,0.388394,3269.8,3269.3,8.93]
[1738307966052,1.45943941,3270.0,3268.4,0.76768582]
[1738307966053,3.05936,3268.7,3268.4,8.93]
[1738307966352,3.05967,3268.4,3268.0,8.93]
[1738307966512,0.7658,3268.3,3268.0,8.93]
[1738307966709,3.82556,3268.3,3268.0,8.93]
[1738307967010,0.03001335,3268.2,3268.1,0.015]
[1738307967209,3.82556,3268.3,3268.1,0.015]
[1738307967511,0.02964883,3268.2,3268.1,0.015]
[1738307967822,3.82556,3268.3,3268.1,0.015]
[1738307968130,0.02964883,3268.2,3268.1,0.015]
[1738307968443,3.82556,3268.3,3268.1,0.015]
[1738307970056,0.7658,3268.3,3268.1,3.07487]
[1738307970410,0.7658,3268.3,3268.1,12.00487]
[1738307970924,0.7658,3268.6,3268.3,0.015]
[1738307971448,0.02964883,3268.5,3268.4,35.015]
[1738307972055,0.7658,3268.9,3268.5,0.015]
[1738307972256,0.7658,3269.3,3268.5,3.015]
[1738307972553,0.7658,3269.3,3269.0,0.015]
[1738307973643,0.7658,3269.3,3268.8,0.0075]
[1738307973829,0.7658,3269.3,3268.8,0.015]
[1738307974032,3.82456,3269.3,3268.8,0.015]
[1738307974222,0.02918736,3269.2,3268.8,0.0075]
[1738307974557,3.09716811,3269.2,3268.8,0.0075]
[1738307974964,0.02918736,3269.1,3268.6,0.015]
[1738307975367,3.09716811,3269.2,3268.6,0.015]
[1738307975940,3.05893,3269.2,3268.6,0.015]
[1738307976141,3.09716812,3269.2,3268.6,0.015]
[1738307976336,3.09716812,3269.2,3268.6,8.945]
[1738307976873,3.05922,3268.8,3268.6,8.945]
[1738307977183,0.7873,3268.7,3268.6,8.945]
[1738307977547,0.81661197,3268.7,3268.6,8.9375]
[1738307977878,0.7873,3268.7,3268.6,8.9375]
[1738307978092,0.81661197,3268.7,3268.6,8.9375]
[1738307978382,0.7873,3268.7,3268.6,8.9375]
[1738307979943,0.81661197,3268.7,3268.6,8.9375]
[1738307980487,0.02931197,3268.7,3268.6,8.945]
[1738307980649,0.794,3269.0,3268.7,0.0075]
[1738307980982,0.794,3269.0,3268.8,0.0075]
[1738307982662,0.794,3269.0,3268.9,35.0]
[1738307982971,0.794,3269.0,3268.9,3.07413]
[1738307983174,0.7877,3269.3,3269.1,3.05894]
[1738307984288,0.7877,3269.3,3269.2,0.0075]
[1738307984493,0.002,3269.4,3269.3,3.05875]
[1738307984732,0.002,3269.4,3269.3,3.06625]
[1738307986808,0.002,3269.4,3269.3,3.06425]
[1738307987280,0.002,3269.4,3269.3,0.0075]
[1738307988976,0.03166271,3269.4,3269.3,0.0075]
[1738307991315,0.03166271,3269.4,3269.3,12.00375]
[1738307991518,0.002,3269.4,3269.3,16.887669]
[1738307991828,0.002,3269.4,3269.3,19.887669]
[1738307992208,0.002,3269.4,3269.3,54.887669]
[1738307992529,1e-05,3269.4,3269.3,54.887669]
[1738307994811,0.09502768,3270.8,3270.7,3.07244]
[1738307995187,0.12425081,3270.8,3270.7,3.07244]
[1738307995422,0.09502768,3270.8,3270.7,3.07244]
[1738307995625,0.12425081,3270.8,3270.7,3.07244]
[1738307995810,0.09502768,3270.8,3270.7,3.07244]
[1738307996020,0.09502768,3270.8,3270.7,5.020239]
[1738307996198,0.09502768,3270.8,3270.7,42.219239]
[1738307996597,0.09502768,3270.8,3270.7,42.020239]
[1738307996821,0.09502768,3270.8,3270.7,42.219239]
[1738307997205,0.09502768,3270.8,3270.7,42.020239]
[1738307997438,0.09502768,3270.8,3270.7,40.219239]
[1738307998528,0.09502768,3270.8,3270.7,38.27144]
[1738307998700,0.09502768,3270.8,3270.7,3.27144]
[1738307999281,0.09502768,3270.8,3270.7,3.07244]
[1738307999753,0.09502768,3270.8,3270.7,0.015]
[1738308001174,0.09502768,3270.8,3270.7,3.07244]
[1738308001479,0.09502768,3270.8,3270.7,4.487529]
[1738308002256,0.09502768,3270.8,3270.7,3.87454]
[1738308002452,0.09502768,3270.8,3270.7,0.015]
[1738308003162,0.09502768,3270.8,3270.7,8.945]
[1738308003673,0.09502768,3270.8,3270.7,12.00244]
[1738308003826,0.09502768,3270.8,3270.7,8.945]
[1738308004929,0.09502768,3270.8,3270.7,12.00244]
[1738308006030,0.09502768,3270.8,3270.7,8.945]
[1738308007676,0.87242768,3270.8,3270.7,8.945]
[1738308008564,0.90187674,3270.8,3270.7,8.945]
[1738308008761,0.87242768,3270.8,3270.7,8.945]
[1738308009060,0.87242768,3270.8,3270.7,0.015]
[1738308009681,0.09502768,3270.8,3270.7,0.015]
[1738308011048,0.09502768,3270.8,3270.7,3.07244]
[1738308013846,0.09502768,3270.8,3270.7,0.015]
[1738308015188,0.09502768,3270.8,3270.7,12.80754]
[1738308015851,0.09502768,3270.8,3270.7,13.35754]
[1738308017387,0.1653047,3271.7,3271.4,0.015]
[1738308017587,0.1653047,3271.7,3271.6,3.0641]
[1738308021190,0.1951641,3271.7,3271.6,3.0641]
[1738308021426,0.1653047,3271.7,3271.6,3.0641]
[1738308021725,0.1951641,3271.7,3271.6,3.676931]
[1738308022033,0.1653047,3271.7,3271.6,3.676931]
[1738308022267,0.1653047,3271.7,3271.6,3.684431]
[1738308022702,0.19541307,3271.7,3271.6,3.684431]
[1738308023233,0.1653047,3271.7,3271.6,3.684431]
[1738308023907,0.1953845,3271.7,3271.6,3.684431]
[1738308027451,0.1953845,3271.7,3271.6,0.627831]
[1738308027653,0.1953845,3271.7,3271.6,0.0075]
[1738308027860,3.05688,3271.3,3270.9,8.93]
[1738308028064,3.05716,3271.0,3270.9,8.93]
[1738308028250,3.05716,3271.0,3270.4,3.07293504]
[1738308028417,3.0877191,3271.0,3270.5,3.015]
[1738308028876,0.0305591,3271.0,3270.5,6.9012635]
[1738308029178,0.0305591,3271.0,3270.7,0.015]
[1738308030287,0.0305591,3271.0,3270.6,0.0075]
[1738308030455,3.05736,3270.8,3270.4,0.01523504]
[1738308030624,3.05763,3270.5,3270.4,0.01523504]
[1738308031039,0.80348575,3270.5,3270.4,0.02273504]
[1738308031969,0.03018575,3270.5,3270.4,0.02273504]
[1738308032266,0.8189,3270.8,3270.5,0.015]
[1738308033823,0.02951731,3270.7,3270.5,0.015]
[1738308034125,0.06773607,3270.7,3270.4,0.01523504]
[1738308034488,0.8189,3270.8,3270.4,0.01523504]
[1738308034489,3.87632,3270.8,3270.4,0.01523504]
[1738308034629,3.05746,3270.7,3270.4,0.01523504]
[1738308034962,3.08697731,3270.7,3270.4,0.01523504]
[1738308035165,0.02951731,3270.7,3270.4,0.01523504]
[1738308035669,3.08696731,3270.7,3270.4,0.01523504]
[1738308035850,0.02951731,3270.7,3270.4,0.01523504]
[1738308036049,3.05756,3270.6,3270.4,0.01523504]